bitfinex/quotes_ETHUSD_20250413
["timestamp","ask_amount","ask_price","bid_price","bid_amount"]
[1744520068372,6.20044,1612.8,1612.4,7.03322]
[1744520068877,6.866,1612.9,1612.5,6.20141]
[1744520069080,3.0,1612.8,1612.5,6.20141]
[1744520069400,6.316,1612.9,1612.6,6.201]
[1744520069579,3.0,1612.8,1612.7,0.8313]
[1744520070169,3.0,1612.8,1612.7,7.03208]
[1744520070372,4.8877531,1613.1,1612.8,6.20038]
[1744520070669,3.0,1613.0,1612.8,6.20038]
[1744520070876,3.55,1613.1,1612.8,6.20038]
[1744520071473,12.63755098,1613.2,1612.8,12.40057]
[1744520071674,12.63755098,1613.2,1612.8,6.20019]
[1744520071877,3.0,1613.1,1612.8,6.20019]
[1744520072501,6.19977,1613.0,1612.7,0.8313]
[1744520072680,8.39916788,1613.0,1612.7,0.8313]
[1744520073009,3.0,1613.1,1612.7,7.03195]
[1744520073181,3.0,1613.1,1612.8,6.20031]
[1744520073380,3.0,1613.1,1612.8,6.20038]
[1744520073975,3.0,1613.1,1612.8,6.20023]
[1744520074812,3.55,1612.9,1612.4,0.762]
[1744520075111,8.39997788,1612.8,1612.4,0.762]
[1744520075276,3.0,1612.8,1612.5,6.20141]
[1744520075810,3.0,1612.8,1612.4,6.96373]
[1744520075811,5.19939788,1612.8,1612.4,6.96373]
[1744520076179,11.39985788,1612.8,1612.4,6.96373]
[1744520076506,13.1995,1612.7,1612.2,6.98438]
[1744520076807,13.1995,1612.7,1612.1,0.02]
[1744520076808,3.0,1612.2,1612.1,0.02]
[1744520076994,13.09147,1612.6,1612.1,0.02]
[1744520076995,8.40055788,1612.6,1612.1,0.02]
[1744520077199,3.0,1612.8,1612.4,6.2017]
[1744520077910,3.0,1612.8,1612.5,6.20137]
[1744520078116,8.39998788,1612.8,1612.3,6.2021]
[1744520078277,2.19939788,1612.8,1612.4,6.20174]
[1744520079310,6.20046,1612.8,1612.5,0.7817]
[1744520079478,8.95021788,1612.7,1612.3,0.7817]
[1744520079810,9.19755788,1612.8,1612.3,6.98367]
[1744520079989,9.19755788,1612.8,1612.3,13.18584]
[1744520080913,3.0,1612.7,1612.3,6.98367]
[1744520081408,9.20094,1612.7,1612.3,0.7817]
[1744520082110,9.20094,1612.7,1612.3,6.98387]
[1744520082111,3.0,1612.7,1612.3,6.98387]
[1744520082317,1.3477,1612.8,1612.4,6.20185]
[1744520082478,4.3477,1612.8,1612.4,12.4036]
[1744520082674,3.0,1612.8,1612.5,6.20133]
[1744520082914,3.0,1612.9,1612.6,6.9828]
[1744520086028,3.0,1612.9,1612.7,6.20075]
[1744520086528,3.0,1612.9,1612.7,12.40133]
[1744520087425,3.0,1612.9,1612.7,12.40114]
[1744520087628,6.34,1613.1,1612.9,6.19995]
[1744520087836,6.34,1613.1,1612.9,7.02915]
[1744520088033,3.01629788,1613.3,1612.9,13.22899]
[1744520088209,2.19939788,1613.3,1613.0,6.19959]
[1744520088410,71.54937098,1613.5,1613.0,6.19959]
[1744520088596,71.54937098,1613.5,1613.0,6.19942]
[1744520089113,6.19903,1613.2,1612.8,6.20002]
[1744520089437,2.19939788,1613.3,1612.9,6.19999]
[1744520089438,8.39819788,1613.3,1612.9,6.19999]
[1744520089840,5.19939788,1613.3,1612.9,6.19979]
[1744520090132,0.8169,1613.4,1613.0,7.02871]
[1744520090315,70.73228098,1613.5,1612.7,6.20056]
[1744520090316,0.8169,1613.1,1612.7,6.20056]
[1744520090717,9.21559788,1613.1,1612.7,6.20056]
[1744520090923,9.21559788,1613.1,1612.6,19.57025]
[1744520091093,9.21559788,1613.1,1612.6,21.527275]
[1744520091297,0.8169,1613.1,1612.7,6.20047]
[1744520091599,6.20056,1612.8,1612.4,13.43578041]
[1744520092509,6.98656,1612.9,1612.5,6.20152]
[1744520092705,0.7864,1612.6,1612.2,6.20253]
[1744520092910,0.7864,1612.6,1612.2,6.824783]
[1744520093328,6.98758,1612.6,1612.2,6.824783]
[1744520094034,0.7864,1612.4,1612.1,0.02]
[1744520094232,6.20264,1612.3,1612.1,0.02]
[1744520094749,0.7864,1612.4,1612.1,6.22306]
[1744520094917,0.7864,1612.4,1612.1,0.02]
[1744520095304,6.9891,1612.2,1612.1,0.02]
[1744520096313,10.5391,1612.2,1612.1,0.02]
[1744520096640,11.03883761,1612.2,1612.1,0.02]
[1744520097540,0.8133,1611.7,1611.3,0.3936603]
[1744520097702,0.8133,1611.7,1611.3,6.5996703]
[1744520098039,3.8133,1611.7,1611.3,6.5996703]
[1744520098405,3.8133,1611.7,1611.4,6.20578]
[1744520098830,6.20501,1611.6,1611.3,0.3936603]
[1744520099137,12.4103,1611.6,1611.3,0.3936603]
[1744520099443,6.20501,1611.6,1611.3,0.3936603]
[1744520099828,6.20541,1611.5,1611.3,0.3936603]
[1744520100033,12.41111,1611.5,1611.3,0.3936603]
[1744520100235,6.20541,1611.5,1611.3,0.3936603]
[1744520101073,7.01908,1611.4,1611.3,0.3936603]
[1744520101221,10.01908,1611.4,1611.3,0.3936603]
[1744520101561,6.20438,1611.8,1611.3,6.5997903]
[1744520101562,7.01758,1611.8,1611.3,6.5997903]
[1744520101764,3.0,1611.7,1611.4,6.20577]
[1744520102325,6.20578,1611.4,1611.3,0.3936603]
[1744520103345,13.00621192,1611.4,1611.3,0.3936603]
[1744520103958,13.47946817,1611.4,1611.3,0.3936603]
[1744520105373,6.20655,1611.2,1611.1,0.02]
[1744520105522,10.51565,1611.2,1611.1,0.02]
[1744520107665,3.0,1610.5,1610.1,0.02]
[1744520107866,3.0,1610.8,1610.5,6.20897]
[1744520108284,3.0,1610.8,1610.6,6.20882]
[1744520108846,3.0,1610.8,1610.5,6.20897]
[1744520109047,0.55,1610.5,1610.1,6.23054]
[1744520109459,6.75942,1610.5,1610.1,6.23054]
[1744520110155,0.8325,1610.2,1610.1,0.02]
[1744520110354,6.21013,1610.3,1610.1,0.02]
[1744520110555,0.55,1610.3,1610.1,0.02]
[1744520110766,3.8325,1610.4,1610.1,0.02]
[1744520110970,3.8325,1610.4,1610.1,12.44117]
[1744520111168,0.8325,1610.4,1610.2,6.21023]
[1744520111399,0.8325,1610.4,1610.1,6.23055]
[1744520111400,6.2104,1610.2,1610.1,0.02]
[1744520111550,6.76007,1610.3,1610.1,0.02]
[1744520112058,9.7604,1610.2,1610.1,0.02]
[1744520112408,13.00453192,1610.2,1610.1,0.02]
[1744520113446,13.00608192,1609.8,1609.7,0.3936603]
[1744520113653,19.46708192,1609.8,1609.7,0.3936603]
[1744520114358,6.21357,1609.4,1609.1,0.02]
[1744520114562,7.01937,1609.7,1609.1,0.02]
[1744520114758,3.55,1609.6,1609.3,6.21387]
[1744520114976,7.566,1609.7,1609.4,6.21321]
[1744520115175,6.759,1609.7,1609.5,6.21308]
[1744520115358,6.2121,1609.8,1609.2,0.783]
[1744520115677,3.55,1609.7,1609.3,6.2135]
[1744520116188,3.55,1609.7,1609.4,6.21332]
[1744520116679,3.0,1609.7,1609.5,6.21284]
[1744520117497,0.55,1609.3,1609.1,0.02]
[1744520117656,9.76426,1609.2,1609.1,0.02]
[1744520118055,12.97919192,1609.2,1609.1,0.02]
[1744520118378,12.97919192,1609.2,1608.4,0.005]
[1744520118379,10.40637,1608.5,1608.4,0.005]
[1744520118584,1.1894,1608.5,1608.4,0.005]
[1744520118801,4.1894,1608.7,1608.4,0.005]
[1744520118994,3.55,1608.7,1608.4,6.22212]
[1744520119285,6.11,1608.9,1608.6,6.2164]
[1744520119500,0.55,1608.9,1608.6,6.21622]
[1744520119692,3.6394,1609.0,1608.5,6.21671]
[1744520119853,3.6394,1609.0,1608.6,6.21658]
[1744520120054,9.85463,1609.0,1608.6,6.21658]
[1744520120280,1.3278,1608.7,1608.4,0.005]
[1744520120474,3.0,1608.5,1608.4,0.005]
[1744520120760,9.76697,1608.5,1608.4,0.005]
[1744520120955,3.55,1608.5,1608.4,0.005]
[1744520121595,0.55,1608.5,1608.4,0.005]
[1744520121796,5.43713192,1608.6,1608.4,0.005]
[1744520122096,3.69066497,1608.9,1608.5,6.21668]
[1744520122260,2.90206497,1608.9,1608.4,0.005]
[1744520122451,2.90206497,1608.9,1608.6,6.21632]
[1744520122684,0.46493305,1608.9,1608.8,6.21581]
[1744520123072,0.7886,1609.1,1608.8,6.2156]
[1744520123293,9.47713192,1609.2,1608.9,12.4305]
[1744520123495,13.11215,1609.4,1609.0,6.21501]
[1744520123901,19.32594,1609.4,1608.9,6.18990757]
[1744520124215,3.0,1609.3,1608.9,6.18990757]
[1744520124370,19.32596,1609.4,1609.0,6.21497]
[1744520124568,0.7886,1609.4,1609.1,6.21435]
[1744520124807,15.69040192,1609.5,1609.1,6.21435]
[1744520125010,15.69040192,1609.5,1609.0,0.7578]
[1744520125011,0.55,1609.4,1609.0,0.7578]
[1744520125216,0.7886,1609.6,1609.3,6.21374]
[1744520125505,3.7886,1609.6,1609.3,6.21374]
[1744520125705,0.7886,1609.6,1609.3,6.21374]
[1744520126005,3.0,1609.6,1609.3,6.21374]
[1744520126187,3.0,1609.6,1609.4,6.21334]
[1744520126388,9.21297,1609.6,1609.1,6.21463]
[1744520126583,8.64946192,1609.7,1609.2,6.21426]
[1744520126799,8.64946192,1609.7,1609.3,6.21371]
[1744520126800,3.0,1609.6,1609.3,6.21371]
[1744520126996,3.0,1609.6,1609.5,6.2131]
[1744520127196,7.8296,1609.8,1609.5,6.2131]
[1744520127396,14.04157,1609.8,1609.4,6.97677]
[1744520127777,0.55,1609.7,1609.4,6.97677]
[1744520128108,6.76244,1609.7,1609.4,0.7633]
[1744520128313,6.21298,1609.6,1609.2,0.7633]
[1744520128474,12.42606,1609.6,1609.2,0.7633]
[1744520128983,6.76352,1609.4,1609.0,0.7633]
[1744520129182,0.55,1609.1,1608.7,6.97947]
[1744520129512,6.21534,1609.0,1608.7,0.7633]
[1744520129710,6.76469,1609.1,1608.7,6.97945]
[1744520129911,6.21504,1609.0,1608.7,0.7633]
[1744520130296,6.21504,1609.0,1608.5,6.97263]
[1744520130471,6.21558,1608.9,1608.5,6.97263]
[1744520130676,6.97404,1609.0,1608.5,6.97245]
[1744520130893,13.18936,1609.0,1608.6,6.21655]
[1744520131091,6.21621,1608.7,1608.4,0.005]
[1744520131291,0.55,1608.5,1608.4,0.005]
[1744520131523,6.76697,1608.5,1608.4,0.005]
[1744520131924,10.52597,1608.5,1608.4,0.005]
[1744520133226,16.63597,1608.5,1608.4,0.005]
[1744520133640,10.52597,1608.5,1608.4,0.005]
[1744520134431,16.63597,1608.5,1608.4,0.005]
[1744520135439,7.52674,1608.3,1608.2,0.005]
[1744520135598,10.52674,1608.3,1608.2,0.005]
[1744520135995,16.63674,1608.3,1608.2,0.005]
[1744520137224,16.63674,1608.3,1608.1,3e-07]
[1744520137225,9.97713,1608.2,1608.1,3e-07]
[1744520137393,17.57213,1608.2,1608.1,3e-07]
[1744520138003,23.68213,1608.2,1608.1,3e-07]
[1744520138618,0.55,1607.4,1607.1,6.99796]
[1744520138900,0.55,1607.6,1607.2,6.22166]
[1744520139100,12.99145,1607.6,1607.1,8.320131]
[1744520139307,6.2209,1607.5,1607.1,2.097771]
[1744520139536,6.77054,1607.6,1607.1,8.320151]
[1744520139841,0.55,1607.5,1607.2,0.7557]
[1744520140137,2.50595237,1607.9,1607.2,0.7557]
[1744520140138,6.21894,1608.0,1607.6,6.2203]
[1744520140295,6.21894,1608.0,1607.6,0.7557]
[1744520140498,6.21958,1607.9,1607.6,0.7557]
[1744520140728,6.21853,1608.1,1607.6,0.7557]
[1744520141031,9.21894,1608.0,1607.6,0.7557]
[1744520141201,15.43811,1608.0,1607.6,6.97614]
[1744520141391,6.21933,1607.9,1607.6,0.7557]
[1744520141727,6.21892,1608.0,1607.6,0.7557]
[1744520141904,3.0,1608.0,1607.6,0.7557]
[1744520142096,6.76973,1607.8,1607.6,0.7557]
[1744520142524,0.55,1607.8,1607.6,0.7557]
[1744520142731,6.76971,1607.8,1607.6,0.7557]
[1744520143195,6.76971,1607.8,1607.4,0.8119]
[1744520143394,0.55,1607.6,1607.4,0.8119]
[1744520143598,12.99147,1607.6,1607.2,0.8119]
[1744520143914,6.22084,1607.5,1607.2,0.8119]
[1744520144116,6.22084,1607.5,1607.1,0.02]
[1744520144117,6.772,1607.2,1607.1,0.02]
[1744520145527,7.5524,1607.2,1607.1,0.02]
[1744520145924,10.5524,1607.2,1607.1,0.02]
[1744520147213,11.02244694,1607.2,1607.1,0.02]
[1744520147822,6.22176,1607.3,1607.1,0.02]
[1744520148005,67.37997,1607.5,1607.1,0.02]
[1744520148201,6.772,1607.2,1607.1,0.02]
[1744520149131,7.23071545,1607.2,1607.1,0.02]
[1744520149340,10.23071545,1607.2,1607.1,0.02]
[1744520149901,10.99081545,1607.2,1607.1,0.02]
[1744520150637,9.772,1607.2,1607.1,0.02]
[1744520150830,9.222,1607.2,1607.1,0.02]
[1744520151031,0.5,1607.4,1607.1,6.24236]
[1744520151235,13.26888,1607.5,1607.1,13.711053]
[1744520151603,6.222,1607.2,1607.1,0.02]
[1744520151805,9.222,1607.2,1607.1,0.02]
[1744520152021,9.772,1607.2,1607.1,0.02]
[1744520153204,3.55,1607.2,1607.1,0.02]
[1744520153409,9.772,1607.2,1607.1,0.02]
[1744520153604,0.55,1607.2,1607.1,0.02]
[1744520153909,0.5,1607.2,1607.1,7.01528]
[1744520154125,0.5,1607.2,1607.1,8.339071]
[1744520154530,7.204,1607.7,1607.1,2.116691]
[1744520154741,13.42429,1607.7,1607.3,6.22135]
[1744520155044,6.21934,1607.9,1607.5,6.99363]
[1744520155244,7.204,1608.0,1607.5,0.7729]
[1744520155446,53.368,1608.2,1607.5,6.99369]
[1744520155648,6.21805,1608.3,1607.9,6.21903]
[1744520155852,6.21805,1608.3,1607.7,0.7729]
[1744520155853,6.21832,1608.2,1607.8,6.21965]
[1744520156149,6.2174,1608.4,1607.9,12.4383]
[1744520156349,6.21701,1608.5,1608.0,6.21865]
[1744520156644,13.42062,1608.6,1608.2,6.21807]
[1744520156645,6.21662,1608.6,1608.2,6.21807]
[1744520156845,6.21662,1608.6,1608.2,6.21806]
[1744520157040,13.4202,1608.7,1608.3,6.2177]
[1744520157045,6.2162,1608.7,1608.3,6.2177]
[1744520157253,6.21584,1608.8,1608.3,6.2177]
[1744520157449,6.21584,1608.8,1608.2,7.461775]
[1744520157450,6.21546,1608.9,1608.4,7.04669]
[1744520157632,6.21546,1608.9,1608.5,6.21696]
[1744520157828,3.0,1608.8,1608.5,6.21692]
[1744520158028,6.21545,1608.9,1608.5,6.21692]
[1744520158258,13.41767,1609.1,1608.6,6.21643]
[1744520158451,6.21442,1609.2,1608.8,6.21569]
[1744520158644,9.52283237,1609.3,1608.9,0.8294]
[1744520158645,8.71983237,1609.3,1608.9,0.8294]
[1744520158848,0.5,1609.0,1608.9,0.8294]
[1744520159165,3.0,1609.2,1608.9,0.8294]
[1744520159363,9.21429,1609.2,1608.9,0.8294]
[1744520159665,6.21485,1609.1,1608.9,0.8294]
[1744520159859,0.55,1609.1,1608.9,0.8294]
[1744520160230,3.0,1609.2,1608.9,0.8294]
[1744520160435,66.78153,1609.4,1608.9,13.25981]
[1744520160631,60.568,1609.4,1608.9,7.04458]
[1744520160902,6.21394,1609.3,1608.9,7.04458]
[1744520161083,0.55,1609.2,1608.9,7.04458]
[1744520161266,3.0,1609.3,1609.0,6.21499]
[1744520161778,9.21415,1609.3,1608.9,0.8294]
[1744520161978,9.21415,1609.3,1608.9,7.04458]
[1744520162201,6.21428,1609.2,1608.9,0.8294]
[1744520162356,9.21415,1609.3,1608.9,7.04481]
[1744520162557,3.0,1609.3,1608.9,0.8294]
[1744520162872,0.55,1609.2,1608.9,0.8294]
[1744520163218,0.55,1609.2,1608.7,0.8294]
[1744520163355,15.42996,1609.1,1608.7,0.8294]
[1744520163698,3.0,1609.2,1608.8,6.2158]
[1744520163988,3.0,1609.2,1608.9,6.21539]
[1744520163989,0.5,1609.1,1608.9,6.21539]
[1744520164190,0.5,1609.1,1609.0,6.21504]
[1744520164485,0.5,1609.1,1609.0,7.04444]
[1744520164784,6.2122,1609.8,1609.4,6.21336]
[1744520165087,12.42447,1609.8,1609.4,6.21336]
[1744520165382,6.21246,1609.7,1609.3,6.21384]
[1744520165571,6.21246,1609.7,1609.3,12.42747]
[1744520165778,6.21246,1609.7,1609.3,6.21363]
[1744520166086,12.4251,1609.7,1609.3,6.21363]
[1744520166251,6.21306,1609.6,1609.2,6.21426]
[1744520166457,6.76244,1609.7,1609.2,1.242886]
[1744520166663,6.76244,1609.7,1609.3,12.42746]
[1744520167070,12.42437,1609.8,1609.4,6.21347]
[1744520167489,6.21212,1609.8,1609.4,13.25613]
[1744520167658,6.21212,1609.8,1609.4,7.04266]
[1744520168159,6.21288,1609.6,1609.4,0.8294]
[1744520168487,12.42597,1609.6,1609.4,0.8294]
[1744520168684,12.42651,1609.5,1609.1,14.242]
[1744520168988,0.5,1609.5,1609.2,6.21419]
[1744520169190,0.5,1609.5,1609.2,12.42829]
[1744520169583,0.5,1609.5,1609.4,6.21349]
[1744520169885,0.5,1609.5,1609.3,6.21387]
[1744520170288,6.71314,1609.5,1609.1,15.66617]
[1744520170488,6.71314,1609.5,1609.1,21.8806]
[1744520170985,0.5,1609.5,1609.3,6.21365]
[1744520171175,0.5,1609.5,1609.2,6.21424]
[1744520171362,0.5,1609.5,1609.3,6.21378]
[1744520171562,0.5,1609.5,1609.2,6.21421]
[1744520172059,6.2136,1609.4,1609.1,9.4516]
[1744520172263,6.2136,1609.4,1609.1,8.0274]
[1744520172563,6.2136,1609.4,1609.1,7.04402]
[1744520174689,12.42739,1609.4,1609.1,0.8294]
[1744520174859,12.42821,1609.3,1608.9,7.0099]
[1744520175194,6.21401,1609.3,1608.9,7.00992]
[1744520175393,6.21401,1609.3,1608.9,7.00971]
[1744520176073,6.21431,1609.2,1608.9,7.00971]
[1744520176467,6.21495,1609.1,1608.7,0.7696]
[1744520176662,6.76431,1609.2,1608.7,1.72762455]
[1744520176878,6.76431,1609.2,1608.8,6.21559]
[1744520177602,13.40997,1609.3,1608.9,6.21526]
[1744520177809,13.40997,1609.3,1609.0,6.215]
[1744520178011,7.196,1609.3,1609.0,12.42989]
[1744520178211,6.76367,1609.4,1609.0,7.457879]
[1744520178378,19.62173,1609.6,1609.1,6.98402]
[1744520178579,19.62173,1609.6,1609.2,6.21413]
[1744520179109,6.21327,1609.5,1609.1,13.19853]
[1744520180417,6.21327,1609.5,1609.1,6.98402]
[1744520180618,6.21327,1609.5,1609.1,13.19855]
[1744520180912,13.40891,1609.6,1609.2,6.21419]
[1744520181116,13.40891,1609.6,1609.3,6.21382]
[1744520181317,3.0,1609.7,1609.3,6.21373]
[1744520181697,3.0,1609.7,1609.4,6.21336]
[1744520182086,3.0,1609.7,1609.5,6.2131]
[1744520182587,6.21251,1609.7,1609.2,6.21426]
[1744520182793,6.21251,1609.7,1609.3,6.21371]
[1744520183120,9.21197,1609.8,1609.2,7.02407948]
[1744520183121,6.21288,1609.6,1609.2,7.02407948]
[1744520183323,6.21277,1609.6,1609.2,6.21424]
[1744520184006,0.5,1609.5,1609.2,12.42848]
[1744520184192,0.5,1609.5,1609.3,6.21373]
[1744520184390,0.5,1609.5,1609.3,12.4274]
[1744520184703,6.21238,1609.7,1609.3,12.42736]
[1744520184909,6.21278,1609.6,1609.2,7.533978]
[1744520185093,6.21278,1609.6,1609.2,13.748108]
[1744520185294,6.21297,1609.6,1609.1,13.19888]
[1744520185496,6.76237,1609.7,1609.3,6.2137]
[1744520185703,6.76237,1609.7,1609.3,6.21367]
[1744520186302,6.21277,1609.6,1609.2,6.21423]
[1744520186501,6.21324,1609.5,1609.1,13.19862]
[1744520186903,6.76234,1609.7,1609.3,6.21367]
[1744520187130,6.76233,1609.7,1609.2,6.21421]
[1744520187336,6.21294,1609.6,1609.2,6.21421]
[1744520187537,6.21337,1609.5,1609.1,6.98421]
[1744520188345,6.21337,1609.5,1609.1,0.7696]
[1744520188519,6.2135,1609.4,1609.1,0.7696]
[1744520188717,6.21426,1609.2,1608.9,6.21539]
[1744520188936,6.21426,1609.2,1608.8,7.01026]
[1744520189145,6.21426,1609.2,1608.1,6.21815]
[1744520189146,6.21589,1608.8,1608.5,0.7945]
[1744520189455,6.21509,1609.0,1608.6,6.21651]
[1744520189805,0.55,1608.9,1608.5,0.7945]
[1744520190044,0.55,1608.9,1608.5,7.01145]
[1744520190247,6.76578,1608.9,1608.5,0.7945]
[1744520190457,6.21595,1608.8,1608.5,0.7945]
[1744520190623,6.21578,1608.9,1608.5,1.495662]
[1744520190825,6.21575,1608.9,1608.5,7.712392]
[1744520191022,6.21575,1608.9,1608.5,0.7945]
[1744520191210,3.0,1608.8,1608.1,0.8117]
[1744520191406,1.351,1608.9,1608.1,0.8117]
[1744520191407,7.56797,1608.5,1608.1,0.8117]
[1744520191619,13.78521,1608.5,1608.1,7.03006]
[1744520191935,7.56797,1608.5,1608.1,7.03006]
[1744520192352,3.0,1608.6,1608.3,6.21736]
[1744520192754,6.76598,1608.8,1608.3,12.43486]
[1744520192951,6.76598,1608.8,1608.3,6.21736]
[1744520193157,6.2162,1608.7,1608.3,6.21736]
[1744520193360,6.76598,1608.8,1608.4,12.43437]
[1744520193577,10.01652,1608.9,1608.4,13.677807]
[1744520193940,0.5,1608.8,1608.4,13.677807]
[1744520194470,12.98296,1608.7,1608.2,6.21809]
[1744520194773,6.21703,1608.5,1608.1,15.598042]
[1744520195271,6.21703,1608.5,1608.1,21.816292]
[1744520195626,6.21703,1608.5,1608.1,15.597822]
[1744520196371,6.21777,1608.3,1608.1,0.8117]
[1744520196572,6.21777,1608.3,1607.9,6.21926]
[1744520196573,6.21777,1608.3,1607.9,7.00036]
[1744520196864,3.55,1608.3,1608.0,6.2189]
[1744520197067,3.55,1608.3,1607.9,6.6299035]
[1744520197224,9.76775,1608.3,1607.9,6.6299035]
[1744520197953,3.0,1608.3,1607.9,12.8489335]
[1744520198154,6.21736,1608.4,1608.0,6.21888]
[1744520198369,6.21736,1608.4,1608.0,6.21885]
[1744520198547,6.21736,1608.4,1607.9,7.27362271]
[1744520198742,6.21794,1608.3,1607.9,6.6299035]
[1744520198937,0.5,1608.3,1607.9,6.6299035]
[1744520199173,0.5,1608.3,1608.0,6.21889]
[1744520199379,0.5,1608.3,1607.9,0.7811]
[1744520199587,3.0,1608.6,1608.2,6.21813]
[1744520199762,9.21663,1608.6,1608.2,6.21813]
[1744520199944,9.21663,1608.6,1608.1,6.21844]
[1744520200332,9.68609962,1608.6,1608.1,6.21844]
[1744520200653,0.55,1608.4,1608.0,6.2189]
[1744520200858,0.55,1608.4,1608.0,12.43755]
[1744520201177,6.76751,1608.4,1608.0,6.21865]
[1744520202043,0.55,1608.4,1608.1,6.21828]
[1744520202241,0.55,1608.5,1608.1,6.21828]
[1744520202646,3.0,1608.6,1608.3,6.21767]
[1744520202862,0.55,1608.6,1608.3,6.21767]
[1744520203063,3.8202,1608.7,1608.3,6.21757]
[1744520203428,3.8202,1608.7,1608.0,6.2189]
[1744520203429,6.26931421,1608.7,1608.0,6.2189]
[1744520203771,0.55,1608.5,1608.2,6.21804]
[1744520203945,0.55,1608.5,1608.1,12.43677]
[1744520204127,0.55,1608.5,1608.1,6.21831]
[1744520204334,1.3687,1608.0,1607.6,13.23393]
[1744520204545,7.58764,1608.0,1607.6,14.557323]
[1744520204978,3.0,1607.6,1607.2,6.22186]
[1744520205132,6.22095,1607.5,1607.1,0.02]
[1744520205333,3.55,1607.3,1607.1,0.02]
[1744520205539,13.03981421,1607.2,1607.1,0.02]
[1744520207031,6.81781421,1607.2,1607.1,0.02]
[1744520207254,0.55,1607.4,1607.1,0.02]
[1744520207466,60.37417,1607.6,1607.3,6.22145]
[1744520207467,0.8187,1607.6,1607.3,6.22145]
[1744520207669,0.8187,1608.0,1607.3,6.22161]
[1744520207869,3.0,1607.8,1607.3,6.22155]
[1744520208051,3.0,1607.8,1607.1,1.437744]
[1744520208052,7.03766,1608.0,1607.5,6.22049]
[1744520208456,0.8187,1608.0,1607.6,6.22027]
[1744520209041,0.5,1607.9,1607.6,6.22027]
[1744520209380,0.5,1607.9,1607.5,1.415549]
[1744520209550,0.5,1607.9,1607.8,6.21967]
[1744520209942,0.45987156,1608.4,1608.1,6.21836]
[1744520210141,11.0910431,1608.6,1608.2,6.21782]
[1744520210367,6.76714,1608.5,1608.1,6.21846]
[1744520211478,6.21714,1608.5,1608.1,6.21846]
[1744520211882,0.55,1608.5,1608.1,6.21831]
[1744520212094,6.76699,1608.5,1608.0,6.21888]
[1744520212388,0.55,1608.2,1607.8,6.97402]
[1744520212593,6.76829,1608.2,1607.8,6.97402]
[1744520212765,15.43452,1608.5,1607.9,6.21925]
[1744520212966,0.55,1608.4,1607.9,6.21899]
[1744520213145,3.0,1608.3,1607.9,6.21899]
[1744520213502,6.76739,1608.4,1608.1,6.21829]
[1744520213503,3.0,1608.4,1608.1,6.21829]
[1744520214186,0.5,1608.2,1608.1,6.21829]
[1744520214388,0.5,1608.2,1608.0,6.21869]
[1744520214903,0.5,1608.2,1607.9,7.01237]
[1744520215201,6.71821,1608.2,1607.8,6.21964]
[1744520215856,6.71821,1608.2,1607.8,12.43906]
[1744520216057,0.5,1608.2,1607.8,12.43906]
[1744520216401,0.5,1608.2,1607.8,6.21942]
[1744520216402,6.21819,1608.2,1607.8,6.21942]
[1744520216706,6.21819,1608.2,1607.8,12.43885]
[1744520216905,0.7513,1608.6,1608.1,6.21823]
[1744520217203,0.55,1608.3,1608.0,6.21888]
[1744520217618,0.55,1608.3,1608.0,12.43754]
[1744520217823,6.21732,1608.5,1608.1,6.21826]
[1744520217824,3.0,1608.4,1608.1,6.21826]
[1744520218197,3.0,1608.4,1608.1,12.43655]
[1744520218398,6.21743,1608.4,1607.9,6.21895]
[1744520218615,3.0,1608.4,1608.1,6.21838]
[1744520219105,0.5,1608.3,1608.0,6.21862]
[1744520219457,0.5,1608.3,1608.2,6.21813]
[1744520220797,0.5,1608.3,1608.1,6.21851]
[1744520221038,0.5,1608.3,1608.0,6.21886]
[1744520221414,6.71781,1608.3,1608.0,6.21886]
[1744520222116,6.71781,1608.3,1607.9,6.21927]
[1744520222456,0.5,1608.3,1608.0,6.21852]
[1744520222615,0.5,1608.3,1608.1,6.21838]
[1744520222816,0.5,1608.3,1608.0,6.21852]
[1744520223153,0.5,1608.3,1608.0,12.4372]
[1744520223313,0.5,1608.3,1608.0,6.21852]
[1744520224079,0.5,1608.3,1608.0,1.3059677]
[1744520224274,0.5,1608.3,1608.2,6.21813]
[1744520224825,7.249,1608.7,1608.3,6.21752]
[1744520225065,7.249,1608.7,1608.4,6.2173]
[1744520225273,13.4652,1608.7,1608.2,6.21799]
[1744520225436,7.249,1608.7,1608.3,6.21753]
[1744520225770,7.249,1608.7,1608.4,6.2172]
[1744520226559,13.46538,1608.7,1608.3,6.21773]
[1744520226874,6.21683,1608.6,1608.2,6.21808]
[1744520227175,6.21683,1608.6,1608.2,12.43607]
[1744520227382,1.3664,1608.5,1607.8,0.8313]
[1744520227653,7.249,1608.7,1607.4,6.22104]
[1744520227654,6.21985,1607.8,1607.4,6.22104]
[1744520227852,0.55,1607.6,1607.1,7.07367]
[1744520228052,0.55,1607.6,1607.1,13.29591]
[1744520228258,6.77059,1607.6,1607.2,6.22195]
[1744520228455,0.55,1607.7,1607.3,6.22124]
[1744520228663,6.22089,1607.5,1607.1,0.8513]